Cogmind - Beta 11.1 @@@ ROGUE MODE // 2022.07.09 @ 16:37:21 Player: Sigil Result: Destroyed by as-64866 with Assembled Rifle Performance ------------- Evolutions (0) 0 Regions Visited (2) 400 Robots Destroyed (21) 105 Value Destroyed (448) 448 Prototype IDs (0) 0 Alien Tech Used (0) 0 Bonus (0) 0 TOTAL SCORE: 953 Bonus ------- None Cogmind --------- Core Integrity 0/250 Matter 231/300 Energy 250/250 System Corruption 9% Temperature Cool (0) Movement Treading (160) Location -10/Mines Parts ------- > --- POWER (1) -------- Ion Engine > --- PROPULSION (2) --- Light Treads Light Treads > --- UTILITY (2) ------ Large Storage Unit Transport Network Coupler > --- WEAPON (2) ------- Small Laser > --- INVENTORY (15) --- Ion Engine Light Treads Light Treads Aluminum Leg Heat Sink Large Storage Unit Medium Matter Pod (100) Medium Matter Pod (100) Medium Matter Pod (100) Signal Interpreter Signal Interpreter Utility Shielding Peak State ------------ > --- POWER ------------ Ion Engine > --- PROPULSION ------- Light Treads Light Treads > --- UTILITY ---------- Large Storage Unit Transport Network Coupler > --- WEAPON ----------- Small Laser Plasma Flamer > --- INVENTORY -------- Ion Engine Light Treads Light Treads Aluminum Leg Heat Sink Large Storage Unit Medium Matter Pod Medium Matter Pod Medium Matter Pod Signal Interpreter Signal Interpreter Utility Shielding [Rating: 12] Favorites ----------- Power Ion Engine Engine Ion Engine Propulsion Light Treads Treads Light Treads Leg Aluminum Leg Utility Large Storage Unit Storage Large Storage Unit Processor Transport Network Coupler Weapon Assault Rifle Energy Gun EM Pulse Gun Ballistic Gun Assault Rifle Special Weapon Plasma Flamer Build | -11 -10 -10 ------- Run | Scr Mat Min Slots Evolved . | . . . Power . | . . . Propulsion . | . . . Utility . | . . . Weapon . | . . . Parts Attached 17 | 6 5 6 Power 4 | 1 2 1 Engine 4 | 1 2 1 Core . | . . . Reactor . | . . . Propulsion 5 | 2 . 3 Treads 3 | . . 3 Leg 2 | 2 . . Wheel . | . . . Hover . | . . . Flight . | . . . Utility 3 | 1 2 . Device . | . . . Storage 2 | 1 1 . Processor 1 | . 1 . Hackware . | . . . Protection . | . . . Artifact . | . . . Weapon 5 | 2 1 2 Energy Gun 3 | 1 1 1 Energy Cannon . | . . . Ballistic Gun 1 | 1 . . Ballistic Cannon . | . . . Launcher . | . . . Special Weapon 1 | . . 1 Impact Weapon . | . . . Slashing Weapon . | . . . Piercing Weapon . | . . . Special Melee Weapon . | . . . Unidentified Prototypes . | . . . Parts Lost 4 | . 1 3 Power . | . . . Propulsion . | . . . Utility . | . . . Weapon 4 | . 1 3 Highest Loss Streak 2 | . 1 2 To Critical Strikes . | . . . Average Slot Usage (%) 98 | . 97 98 Engine 13 | . 14 13 Treads 15 | . . 27 Leg 12 | . 28 . Storage 14 | . 14 14 Processor 13 | . 11 14 Energy Gun 13 | . 14 13 Ballistic Gun 11 | . 14 8 Special Weapon 2 | . . 4 Naked Turns . | . . . Heaviest Build 29 | 12 29 29 Greatest Support 40 | 20 20 40 Greatest Overweight (x) 1 | 1 1 . Average Overweight (x) . | . . . Largest Inventory Capacity 15 | 8 15 15 Average Capacity 14 | 6 14 15 Most Carried 15 | 7 15 15 Average Carried 12 | 4 11 13 Final Capacity 15 | 8 15 15 Final Carried 15 | 7 15 12 Class Distribution -------------------- 100% | Mutant Dominant Class ---------------- Mutant | -10/Materials Mutant | -10/Mines Resources | -11 -10 -10 ----------- Run | Scr Mat Min Matter Collected 860 | 266 109 485 Remotely . | . . . Salvage Created 842 | 80 566 196 Parts 43 | 4 29 10 Haulers Intercepted 2 | . 2 . Recyclers Shooed . | . . . Parts Field Recycled . | . . . Retrieved Matter . | . . . Parts Self-Destructed . | . . . Prevented . | . . . Kills | -11 -10 -10 ------- Run | Scr Mat Min Combat Hostiles Destroyed 20 | . 9 11 Guns 13 | . 6 7 Cannons 3 | . . 3 AOE 3 | . 3 . Classes Destroyed 7 | 1 5 1 Worker 1 | . 1 . Hauler 2 | . 2 . Recycler 2 | 1 1 . Watcher 1 | . 1 . Swarmer 6 | . 3 3 Grunt 9 | . 6 3 Assembled 5 | . . 5 Best Kill Streak 3 | 1 3 3 Combat Bots Only 3 | . 3 3 Max Kills in Single Turn 2 | 1 2 1 Gunslinging . | . . . Exploded 2 | . 2 . Melee . | . . . Uniques/NPCs Destroyed . | . . . Combat | -11 -10 -10 -------- Run | Scr Mat Min Damage Taken 938 | . 269 669 Core 259 | . 60 199 Absorbed by Shields . | . . . Core Remaining (%) 100 | 100 . . Volleys Fired 72 | 2 29 41 Largest 2 | 2 2 2 Hottest 140 | 60 60 140 Shots Fired 139 | 4 58 77 Gun 126 | 4 58 64 Cannon . | . . . Launcher . | . . . Special 13 | . . 13 Kinetic 58 | 2 29 27 Thermal 23 | . . 23 Explosive . | . . . Electromagnetic 58 | 2 29 27 Robot Hit Streak 13 | 2 13 12 Robot Miss Streak 3 | 1 2 3 Penetration Max . | . . . Secondary Targets . | . . . Shots Hit Robots 88 | 2 38 48 Core Hits 39 | 1 18 20 Critical Kills 1 | . . 1 Critical Parts Destroyed 1 | . 1 . Critical Strikes 4 | . 1 3 Burn 2 | . . 2 Destroy 2 | . 1 1 Melee Attacks . | . . . Impact . | . . . Slashing . | . . . Piercing . | . . . Sneak Attacks . | . . . Combat Hostiles . | . . . Follow-up Attacks . | . . . Damage Inflicted 1326 | 30 689 607 Guns 1032 | 30 552 450 Cannons . | . . . Explosions 137 | . 137 . Melee . | . . . Ramming . | . . . Kinetic 462 | 15 228 219 Thermal 336 | . 137 199 Explosive . | . . . Electromagnetic 528 | 15 324 189 Impact . | . . . Slashing . | . . . Piercing . | . . . Highest Corruption 9 | . . 9 Average Corruption 9 | . . 9 Corruption Purged . | . . . Corruption Blocked . | . . . Effects 14 | . . 14 Message Errors 4 | . . 4 Matter Fused 4 | . . 4 Heat Flow Errors 1 | . . 1 Energy Discharges 1 | . . 1 Data Loss (minor) 1 | . . 1 Data Loss (major) 1 | . . 1 Misfires 1 | . . 1 Alerts 1 | . . 1 Overload Shots . | . . . Overflow Damage . | . . . Projectiles . | . . . Explosions . | . . . Melee . | . . . Knockbacks . | . . . Impact . | . . . Kinetic . | . . . Secondary . | . . . Self-Inflicted Damage 39 | . 39 . Shots 1 | . 1 . Rammed . | . . . Targets Rammed . | . . . Kicked . | . . . Crushed . | . . . Highest Temperature 431 | . 66 431 Average Temperature 91 | . 28 110 Received Heat Transfer 273 | . 72 201 Effects 2 | . . 2 Shutdowns 1 | . . 1 Matter Decay 1 | . . 1 Siege Activations . | . . . Robots Corrupted . | . . . Combat Hostiles . | . . . Parts Fried . | . . . Impact Corruptions . | . . . Robots Melted 1 | . . 1 Combat Hostiles 1 | . . 1 Parts Melted . | . . . Heat Transferred 1530 | . 150 1380 Parts Sabotaged . | . . . Parts Stolen . | . . . Parts Stripped . | . . . Power Chain Reactions 2 | . 2 . Missiles Intercepted . | . . . Alert | -11 -10 -10 ------- Run | Scr Mat Min Peak Influence 213 | 5 201 213 Initial 78 | . 3 78 Average 83 | 1 78 95 Maximum Alert Level 1 | . 1 1 Low Security (%) 76 | 100 88 65 Level 1 23 | . 11 34 Level 2 . | . . . Level 3 . | . . . Level 4 . | . . . Level 5 . | . . . High Security . | . . . Max Security . | . . . Squads Dispatched 2 | . 2 . Investigation 1 | . 1 . Extermination . | . . . Reinforcement 1 | . 1 . Assault . | . . . Garrison . | . . . Intercept . | . . . Searches Triggered . | . . . Construction Impeded . | . . . Haulers Reinforced . | . . . Active Scanning Responses . | . . . Cargo Convoy Interrupts . | . . . Stealth | -11 -10 -10 --------- Run | Scr Mat Min Distress Signals 2 | . 2 . Communications Jammed . | . . . Distress Signals . | . . . Times Spotted 32 | . 17 15 Peak Tracking Total 5 | . 5 3 Tactical Retreats 5 | . 2 3 Traps | -11 -10 -10 ------- Run | Scr Mat Min Traps Triggered 1 | . 1 . Indirectly . | . . . Trap Hack Attempts . | . . . Triggered . | . . . Disarmed . | . . . Reprogrammed . | . . . Reused . | . . . Traps Extracted . | . . . Installed . | . . . Triggered . | . . . Machines | -11 -10 -10 ---------- Run | Scr Mat Min Machines Disabled 1 | . 1 . Max in Single Turn 1 | . 1 . Machines Sabotaged . | . . . Garrisons Compromised . | . . . Overloaded Fab Kills . | . . . Hacking | -11 -10 -10 --------- Run | Scr Mat Min Machines Accessed 1 | . 1 . Terminals 1 | . 1 . Fabricators . | . . . Repair Stations . | . . . Recycling Units . | . . . Scanalyzers . | . . . Garrison Access . | . . . Total Hacks 1 | . 1 . Successful . | . . . Failed 1 | . 1 . Catastrophic 1 | . 1 . Database Lockouts . | . . . Manual . | . . . Terminals 1 | . 1 . Fabricators . | . . . Repair Stations . | . . . Recycling Units . | . . . Scanalyzers . | . . . Garrison Access . | . . . Terminal Hacks . | . . . Fabricator Hacks . | . . . Repair Station Hacks . | . . . Recycling Unit Hacks . | . . . Scanalyzer . | . . . Garrison Access Hacks . | . . . Unauthorized Hacks . | . . . Terminals . | . . . Fabricators . | . . . Repair Stations . | . . . Recycling Units . | . . . Scanalyzers . | . . . Garrison Access . | . . . Data Cores Recovered . | . . . Used . | . . . Hacking Detections 1 | . 1 . Full Trace Events . | . . . Feedback Events . | . . . Feedback Blocked . | . . . Robot Schematics Acquired . | . . . Robots Built . | . . . Authchips . | . . . Time . | . . . Total Robot Build Rating . | . . . Part Schematics Acquired . | . . . Parts Built . | . . . Authchips . | . . . Time . | . . . Total Part Build Rating . | . . . Parts Repaired . | . . . Time . | . . . Parts Recycled . | . . . Recycled Matter . | . . . Retrieved Matter . | . . . Retrieved Components . | . . . Parts Scanalyzed . | . . . Part Schematics Acquired . | . . . Parts Damaged . | . . . Bothacking | -11 -10 -10 ------------ Run | Scr Mat Min Used RIF Installer . | . . . Robots Hacked . | . . . Non-combat . | . . . Combat . | . . . Robot Hacks Applied . | . . . Relay Couplers Released . | . . . Fabnet Peak Effective % . | . . . Robots Rewired . | . . . Allies Hacked . | . . . Hacks Repelled . | . . . Allies | -11 -10 -10 -------- Run | Scr Mat Min Total Allies . | . . . Largest Group . | . . . Highest-Rated Group . | . . . Highest-Rated Ally . | . . . Total Orders . | . . . Ally Attacks . | . . . Total Damage . | . . . Kills . | . . . Allies Corrupted . | . . . Allies Melted . | . . . Intel | -11 -10 -10 ------- Run | Scr Mat Min Robot Analysis Total . | . . . Derelict Logs Recovered 2 | . . 2 Drone Launches . | . . . Drone Recoveries . | . . . Exploration | -11 -10 -10 ------------- Run | Scr Mat Min Turns Passed 1749 | 93 733 923 Spaces Moved 879 | 66 325 488 Core 19 | 19 . . Treads 488 | . . 488 Legs 372 | 47 325 . Wheels . | . . . Hover . | . . . Flight . | . . . Fastest Speed 50 | 50 120 160 Average Speed 163 | 108 181 160 Slowest Speed 190 | 120 190 160 Overloaded Moves . | . . . Propulsion Burnouts . | . . . Robots Hopped . | . . . Cave-ins Triggered . | . . . Exploration Rate (%) 45 | 4 48 83 Regions Visited 2 Branch Regions 1 Pre-discovered Areas 1 | . . 1 Known Exits Taken . | . . . Unknown Exits Taken 2 | 1 1 . Scrap Searched 2 | . . 2 Spaces Dug . | . . . Terrain Destroyed 11 | . 11 . Melee . | . . . Projectile . | . . . AOE 11 | . 11 . Terrain Rammed . | . . . Walls Destroyed . | . . . Machines Disabled . | . . . Actions | -11 -10 -10 --------- Run | Scr Mat Min Total 1042 | 80 415 547 Wait 43 | . 35 8 Move 877 | 65 324 488 Hop . | . . . Pick Up 24 | 7 15 2 Fast Attach 7 | 6 1 . Attach 5 | . 2 3 Detach . | . . . Swap 5 | . 2 3 Drop 9 | . 7 2 Fire 72 | 2 29 41 Melee . | . . . Ram . | . . . Kick . | . . . Crush . | . . . Escape Stasis . | . . . Rewire . | . . . Trap . | . . . Miscellaneous . | . . . Route ------- -11/Scrapyard -10/Materials (discovered 2 exits: [*Mat] / [*Min]) -10/Mines History --------- Turn | Location | Event 6 | -11/Scrapyard | Discovered new exit (range 15) 94 | -11/Scrapyard | Entered Materials 300 | -10/Materials | Build established: Mutant 465 | -10/Materials | Discovered new exit (range 13) 770 | -10/Materials | Discovered new exit (range 7) 827 | -10/Materials | Entered Mines 900 | -10/Mines | Core integrity fell below 50% 1217 | -10/Mines | Assembled infested the area 1219 | -10/Mines | A weapon hastily lodged in a ceiling crevice suddenly fell to the ground 1222 | -10/Mines | Assisted by a Guerilla fighting off Assembled 1547 | -10/Mines | Learned Materials security intel 1609 | -10/Mines | Learned location of Storage (-9) 1633 | -10/Mines | Core integrity fell below 20% 1750 | -10/Mines | Destroyed by as-64866 with Assembled Rifle Last Messages --------------- 01638_ G-47 Trooper heat short circuits Lgt. Nuclear Core. 01639_ System corrupted: Component data lost. 01639_ G-47 Trooper heat damages Broken Lgt. Nuclear Core, Particle Gun, Aluminum Leg. 01642_ G-47 Trooper critical meltdown. 01644_ Overheating: Matter decay (-69). 01645_ G-34 Mercenary suffers critical hit (Burn). 01645_ G-34 Mercenary overheating. 01648_ G-34 Mercenary heat short circuits Sml. Laser. 01649_ Power failure, Ion Engine shutdown. 01649_ Acquired 17 matter. 01650_ G-34 Mercenary heat damages Broken Sml. Laser. 01656_ Q8NEN:P>HMNOBY/HJSJJGKVNBXZYYE